bitfinex/quotes_SOLUSD_20240616
["timestamp","ask_amount","ask_price","bid_price","bid_amount"]
[1718501052909,47.8957,144.9,144.81,5.59]
[1718501053090,47.8957,144.9,144.82,5.59]
[1718501053291,5.59,144.87,144.82,5.59]
[1718501053822,7.6607,144.9,144.82,5.59]
[1718501054021,5.59,144.87,144.82,5.59]
[1718501054229,5.59,144.87,144.81,5.59]
[1718501055218,2.5536,144.89,144.81,5.59]
[1718501055421,5.59,144.86,144.81,5.59]
[1718501055717,5.59,144.85,144.8,0.51]
[1718501056017,5.59,144.85,144.8,0.34]
[1718501056193,5.59,144.85,144.79,28.3077]
[1718501057511,5.59,144.86,144.8,5.93]
[1718501057832,5.59,144.87,144.81,5.59]
[1718501058017,5.59,144.87,144.82,5.59]
[1718501058243,5.59,144.87,144.81,5.59]
[1718501061924,5.59,144.87,144.82,0.17]
[1718501062095,5.59,144.87,144.82,0.34]
[1718501063223,25.5351,144.9,144.82,0.34]
[1718501063426,21.68483428,144.94,144.83,0.17]
[1718501063626,21.68483428,144.94,144.85,5.59]
[1718501063627,5.59,144.9,144.85,5.59]
[1718501064205,5.59,144.9,144.84,28.4815]
[1718501064626,5.59,144.9,144.84,22.8915]
[1718501064840,5.59,144.89,144.84,22.8915]
[1718501067037,17.8721,144.92,144.84,22.8915]
[1718501067329,18.0755,144.93,144.84,28.4815]
[1718501067539,5.59,144.9,144.84,22.8915]
[1718501067708,5.59,144.9,144.84,28.4815]
[1718501067907,22.9767,144.93,144.85,5.59]
[1718501068229,5.59,144.9,144.84,28.4815]
[1718501069430,5.59,144.9,144.85,5.59]
[1718501071739,45.57516491,144.97,144.88,0.17]
[1718501071944,7.657,144.97,144.89,28.5705]
[1718501072149,2.5523,144.97,144.89,28.5705]
[1718501072330,5.59,144.95,144.89,28.5705]
[1718501073343,5.59,144.94,144.89,22.9805]
[1718501073640,2.5524,144.97,144.89,22.9805]
[1718501073813,5.59,144.95,144.89,28.5705]
[1718501077145,17.8634,144.99,144.9,0.17]
[1718501077346,16.3104,145.0,144.92,5.59]
[1718501077347,7.6553,145.0,144.92,5.59]
[1718501077642,5.59,144.98,144.92,5.59]
[1718501078235,5.59,144.97,144.92,5.59]
[1718501078733,5.59,144.97,144.91,5.59]
[1718501078951,5.59,144.96,144.91,5.59]
[1718501082252,5.59,144.95,144.9,0.68]
[1718501082556,5.59,144.94,144.89,28.5705]
[1718501083134,5.59,144.94,144.89,22.9805]
[1718501083338,5.59,144.93,144.89,22.9805]
[1718501084166,5.59,144.92,144.89,22.9805]
[1718501084755,5.59,144.93,144.89,22.9805]
[1718501085157,17.8653,144.98,144.89,22.9805]
[1718501085158,2.5521,144.98,144.89,22.9805]
[1718501085358,5.59,144.94,144.89,22.9805]
[1718501086074,5.59,144.95,144.9,6.1]
[1718501086573,5.59,144.95,144.9,6.27]
[1718501087065,5.59,144.94,144.9,0.68]
[1718501089139,5.59,144.94,144.89,28.5705]
[1718501089335,5.59,144.94,144.89,22.9805]
[1718501089568,5.59,144.93,144.89,22.9805]
[1718501089942,5.59,144.92,144.89,22.9805]
[1718501090560,5.59,144.92,144.91,3.7]
[1718501091848,6.3453,144.97,144.91,3.7]
[1718501092068,2.5526,144.95,144.91,3.7]
[1718501092370,5.59,144.92,144.91,3.7]
[1718501094874,54.2285,144.97,144.91,3.7]
[1718501095064,5.59,144.94,144.91,3.7]
[1718501096673,2.5524,144.96,144.91,3.7]
[1718501096674,5.59,144.93,144.91,3.7]
[1718501096850,5.59,144.92,144.91,3.7]
[1718501106474,22.36,144.97,144.91,3.7]
[1718501106682,16.3104,144.99,144.91,3.7]
[1718501106870,5.59,144.95,144.91,3.7]
[1718501108076,18.8623,144.99,144.91,3.7]
[1718501108274,5.59,144.95,144.91,3.7]
[1718501110689,5.59,144.95,144.91,19.0909]
[1718501110985,5.59,144.96,144.91,19.0909]
[1718501112160,5.59,144.98,144.92,5.76]
[1718501112360,5.59,144.98,144.93,5.59]
[1718501113492,16.4221,145.03,144.91,19.0909]
[1718501113678,5.59,144.96,144.91,19.0909]
[1718501114263,5.59,144.95,144.91,19.0909]
[1718501116394,5.59,144.96,144.91,19.0909]
[1718501121307,25.5181,145.0,144.91,19.0909]
[1718501121308,5.59,144.93,144.91,19.0909]
[1718501121470,5.59,144.93,144.91,3.7]
[1718501121673,5.59,144.92,144.91,3.7]
[1718501123307,36.7111,144.92,144.91,3.7]
[1718501123521,13.7331,144.92,144.91,3.7]
[1718501124008,36.7111,144.92,144.91,3.7]
[1718501124176,13.7331,144.92,144.91,3.7]
[1718501124382,11.18,144.92,144.91,3.7]
[1718501124801,13.7331,144.92,144.91,3.7]
[1718501125013,19.1793,144.92,144.91,3.7]
[1718501125879,5.76,144.92,144.91,3.7]
[1718501126078,5.59,144.92,144.91,3.7]
[1718501129696,8.1431,144.92,144.91,3.7]
[1718501130212,13.2493,144.92,144.91,3.7]
[1718501131298,31.2911,144.92,144.91,3.7]
[1718501131498,31.8011,144.92,144.91,3.7]
[1718501131919,31.8011,144.92,144.82,21.4445]
[1718501131920,2.5536,144.89,144.82,21.4445]
[1718501132108,5.59,144.85,144.82,21.4445]
[1718501132308,5.59,144.84,144.82,21.4445]
[1718501132927,5.59,144.84,144.82,15.3909]
[1718501136148,5.59,144.83,144.78,21.7428]
[1718501136445,5.59,144.83,144.78,27.3328]
[1718501137431,5.59,144.83,144.78,21.7428]
[1718501137820,5.59,144.81,144.78,21.7428]
[1718501139108,5.59,144.82,144.78,21.7428]
[1718501140211,5.59,144.83,144.78,21.7428]
[1718501140441,5.59,144.83,144.78,27.3328]
[1718501141150,5.59,144.83,144.78,21.7428]
[1718501141824,5.59,144.82,144.78,21.7428]
[1718501142709,5.59,144.81,144.78,21.7428]
[1718501143148,5.59,144.82,144.78,21.7428]
[1718501143519,5.59,144.81,144.78,15.7085]
[1718501143731,5.59,144.8,144.75,15.7085]
[1718501143938,5.59,144.79,144.75,15.7085]
[1718501144318,5.59,144.8,144.75,15.7085]
[1718501147245,5.59,144.83,144.75,15.7085]
[1718501147552,5.59,144.79,144.75,15.7085]
[1718501148150,23.68794445,144.88,144.78,5.59]
[1718501148327,5.59,144.85,144.79,5.59]
[1718501148534,5.59,144.84,144.79,5.59]
[1718501148725,5.59,144.85,144.79,5.59]
[1718501148925,5.59,144.84,144.79,5.59]
[1718501149343,5.59,144.84,144.78,5.59]
[1718501150438,0.17,144.83,144.75,15.7085]
[1718501150758,5.59,144.79,144.75,15.7085]
[1718501154132,5.59,144.77,144.75,15.7085]
[1718501154380,5.59,144.76,144.71,15.0489]
[1718501154681,5.59,144.75,144.71,15.0489]
[1718501155270,2.555,144.81,144.71,20.6389]
[1718501155555,5.59,144.76,144.71,20.6389]
[1718501156160,6.0095,144.86,144.76,0.17]
[1718501156362,5.59,144.84,144.79,5.59]
[1718501156859,5.59,144.82,144.77,5.59]
[1718501157441,5.59,144.82,144.76,5.59]
[1718501158038,17.8835,144.83,144.74,21.6298]
[1718501158263,5.59,144.79,144.74,21.6298]
[1718501158448,5.59,144.8,144.74,27.2198]
[1718501158955,25.5459,144.84,144.75,0.34]
[1718501159461,7.6638,144.84,144.75,0.34]
[1718501159645,2.5547,144.83,144.75,0.34]
[1718501159842,5.1102,144.81,144.74,21.6298]
[1718501160042,5.1098,144.82,144.74,21.6298]
[1718501160259,0.17,144.83,144.74,21.6298]
[1718501160469,7.6641,144.83,144.74,21.6298]
[1718501161053,15.3282,144.83,144.74,21.6298]
[1718501161252,7.6647,144.82,144.74,21.6298]
[1718501161489,15.3304,144.81,144.74,21.6298]
[1718501161784,2.5553,144.8,144.74,21.6298]
[1718501162166,7.6659,144.8,144.74,21.6298]
[1718501162365,25.5515,144.81,144.74,21.6298]
[1718501162585,7.6654,144.81,144.74,21.6298]
[1718501162893,2.5549,144.82,144.74,21.6298]
[1718501163111,22.5549,144.82,144.74,21.6298]
[1718501163411,35.3294,144.82,144.74,21.6298]
[1718501163696,42.9941,144.82,144.74,21.6298]
[1718501163875,45.5491,144.82,144.74,21.6298]
[1718501164079,2.555,144.81,144.74,21.6298]
[1718501165895,2.555,144.81,144.75,1.38151381]
[1718501166092,15.3304,144.81,144.75,1.38151381]
[1718501166268,2.555,144.81,144.75,1.38151381]
[1718501166681,7.6652,144.81,144.75,1.38151381]
[1718501166879,2.5552,144.8,144.75,1.38151381]
[1718501167200,25.5509,144.81,144.75,1.38151381]
[1718501167366,22.9957,144.81,144.75,1.38151381]
[1718501167567,0.17,144.84,144.75,0.17]
[1718501167568,5.1094,144.83,144.75,0.17]
[1718501167801,7.6641,144.83,144.75,0.68]
[1718501168090,2.5547,144.83,144.75,1.30688482]
[1718501168796,7.6641,144.83,144.75,1.30688482]
[1718501168992,2.5549,144.82,144.75,1.30688482]
[1718501169296,7.17755256,144.86,144.79,0.17]
[1718501169492,2.554,144.87,144.79,0.68]
[1718501169689,15.3232,144.88,144.79,0.68]
[1718501169872,2.554,144.87,144.79,0.68]
[1718501170073,25.5402,144.87,144.79,0.68]
[1718501170269,2.5542,144.86,144.79,0.68]
[1718501170484,7.6626,144.86,144.79,0.51]
[1718501170680,2.5542,144.86,144.79,0.51]
[1718501170877,2.5542,144.86,144.79,1.88888623]
[1718501171073,7.6625,144.86,144.79,1.37888623]
[1718501171290,7.6625,144.86,144.78,0.17]
[1718501171592,2.5542,144.86,144.78,0.68]
[1718501171797,2.5542,144.86,144.78,2.05882017]
[1718501172179,22.9862,144.87,144.78,2.05882017]
[1718501172375,25.5403,144.87,144.78,2.05882017]
[1718501172581,25.5392,144.88,144.78,2.05882017]
[1718501172780,5.1075,144.89,144.78,102.05882017]
[1718501173009,16.84,144.91,144.78,2.05882017]
[1718501173173,21.9478,144.88,144.78,2.05882017]
[1718501173377,32.1633,144.88,144.78,2.05882017]
[1718501173695,2.554,144.87,144.78,2.05882017]
[1718501174868,2.554,144.87,144.78,0.68]
[1718501175901,7.662,144.87,144.78,0.68]
[1718501176096,20.4327,144.87,144.78,0.68]
[1718501176296,15.3241,144.87,144.78,0.68]
[1718501176603,2.5541,144.86,144.78,0.68]
[1718501176820,7.17610185,144.92,144.81,16.4862]
[1718501177111,7.6604,144.9,144.82,0.68]
[1718501177402,25.534,144.91,144.82,0.68]
[1718501177784,2.5535,144.9,144.82,0.68]
[1718501177985,5.107,144.9,144.82,0.68]
[1718501178310,15.3211,144.9,144.82,0.68]
[1718501178601,7.6606,144.9,144.82,0.68]
[1718501179008,15.321,144.9,144.82,0.68]
[1718501179191,15.321,144.9,144.82,0.51]
[1718501179192,7.661,144.89,144.82,0.51]
[1718501179395,7.661,144.89,144.81,16.4862]
[1718501182098,17.8759,144.89,144.81,16.4862]
[1718501182397,2.5538,144.88,144.81,16.4862]
[1718501182797,2.5538,144.88,144.82,1.3766853]
[1718501183100,22.9833,144.89,144.82,1.3766853]
[1718501183101,25.5371,144.89,144.82,1.3766853]
[1718501184909,2.5538,144.88,144.82,1.3766853]
[1718501185114,5.61,144.85,144.82,1.3766853]
[1718501185310,22.1192,144.96,144.83,0.17]
[1718501185619,5.61,144.88,144.83,0.17]
[1718501186901,7.6594,144.92,144.83,0.17]
[1718501187098,15.3188,144.92,144.83,0.17]
[1718501187302,25.5314,144.92,144.83,0.17]
[1718501188393,7.6595,144.92,144.83,0.17]
[1718501188810,2.5533,144.91,144.83,0.17]
[1718501190098,25.5314,144.92,144.83,0.17]
[1718501192034,7.6595,144.92,144.83,0.17]
[1718501192429,15.3189,144.92,144.83,0.17]
[1718501194714,2.5534,144.91,144.83,0.17]
[1718501196234,7.66,144.91,144.83,0.17]
[1718501198634,2.5534,144.91,144.83,0.17]
[1718501198821,25.5321,144.92,144.83,0.17]
[1718501199025,2.5533,144.91,144.83,0.17]
[1718501199527,7.6599,144.91,144.83,0.17]
[1718501199834,2.5533,144.91,144.83,0.17]
[1718501200924,22.9789,144.92,144.84,22.5555]
[1718501200925,5.1063,144.92,144.84,22.5555]
[1718501201123,7.6595,144.92,144.84,22.5555]
[1718501201522,7.6594,144.92,144.85,0.51]
[1718501201930,2.5532,144.92,144.85,0.51]
[1718501202630,25.5303,144.93,144.85,0.51]
[1718501205048,2.5531,144.92,144.85,0.51]
[1718501205336,25.5304,144.93,144.85,0.51]
[1718501205515,2.5531,144.92,144.85,0.51]
[1718501206417,2.5531,144.92,144.84,22.5555]
[1718501206418,7.6594,144.92,144.84,22.5555]
[1718501206642,2.5531,144.92,144.84,22.5555]
[1718501206921,5.61,144.89,144.84,22.5555]
[1718501207663,5.61,144.89,144.85,0.17]
[1718501209333,5.61,144.91,144.85,0.17]
[1718501209834,5.61,144.91,144.85,0.51]
[1718501210038,5.61,144.91,144.85,6.12]
[1718501210243,5.61,144.91,144.85,0.51]
[1718501213257,5.61,144.91,144.84,28.1655]
[1718501213561,22.9772,144.93,144.84,28.1655]
[1718501213562,5.61,144.9,144.84,28.1655]
[1718501213928,5.61,144.9,144.85,1.36827858]
[1718501214159,5.61,144.91,144.85,6.97827858]
[1718501214460,5.61,144.91,144.86,1.36866504]
[1718501215173,5.61,144.89,144.86,1.36866504]
[1718501215459,5.61,144.89,144.85,1.38039188]
[1718501217857,5.61,144.88,144.85,1.38039188]
[1718501220247,5.61,144.89,144.85,1.38039188]
[1718501220965,5.61,144.87,144.85,1.38039188]
[1718501221469,2.5537,144.89,144.84,15.9254]
[1718501221656,5.61,144.85,144.84,15.9254]
[1718501222400,5.61,144.85,144.81,7.81011052]
[1718501222707,5.61,144.83,144.81,7.81011052]
[1718501223268,5.61,144.82,144.77,6.4296]
[1718501223509,5.61,144.78,144.76,16.1885]
[1718501224303,5.61,144.77,144.76,16.1885]
[1718501226194,5.61,144.77,144.76,16.3585]
[1718501226493,5.61,144.77,144.76,16.5285]
[1718501226701,5.61,144.77,144.76,16.8685]
[1718501227291,5.61,144.78,144.76,16.8685]
[1718501227480,5.61,144.77,144.76,16.8685]
[1718501227995,5.61,144.77,144.74,6.4296]
[1718501228200,5.61,144.75,144.74,6.4296]
[1718501229498,5.61,144.75,144.72,16.1885]
[1718501229801,17.8845,144.82,144.72,16.1885]
[1718501229802,5.61,144.74,144.72,16.1885]
[1718501229990,5.61,144.73,144.72,16.1885]
[1718501230170,5.61,144.74,144.72,16.1885]
[1718501231079,2.5554,144.79,144.72,16.1885]
[1718501231080,5.61,144.73,144.72,16.1885]
[1718501231472,5.61,144.73,144.7,6.4296]
[1718501231706,5.61,144.72,144.7,6.4296]
[1718501231877,5.61,144.76,144.68,17.0592532]
[1718501232081,5.61,144.71,144.68,17.0592532]
[1718501232293,5.61,144.72,144.68,17.0592532]
[1718501233198,21.7566,144.79,144.68,22.6692532]
[1718501233199,5.61,144.74,144.68,22.6692532]
[1718501233447,5.61,144.74,144.68,17.0592532]
[1718501233578,5.61,144.74,144.69,0.68]
[1718501233779,5.61,144.73,144.69,0.68]
[1718501234010,5.61,144.72,144.69,0.68]
[1718501235099,13.2779,144.76,144.68,17.0592532]
[1718501235277,5.61,144.71,144.68,17.0592532]
[1718501235671,40.3322,144.76,144.68,17.0592532]
[1718501235672,5.61,144.7,144.68,17.0592532]
[1718501237018,15.3337,144.78,144.69,0.34]
[1718501237200,5.61,144.72,144.69,0.68]
[1718501237386,5.61,144.73,144.69,0.68]
[1718501237585,5.61,144.72,144.69,0.68]
[1718501238707,30.1078,144.76,144.68,17.0592532]
[1718501238708,2.5562,144.75,144.68,17.0592532]
[1718501238913,5.61,144.71,144.68,17.0592532]
[1718501239620,32.6641,144.76,144.68,17.0592532]
[1718501239621,5.61,144.72,144.68,17.0592532]
[1718501239814,25.558,144.77,144.69,0.51]
[1718501239998,5.61,144.75,144.69,6.12]
[1718501240520,5.61,144.74,144.69,6.12]
[1718501241903,5.61,144.74,144.68,17.0592532]
[1718501241904,5.61,144.7,144.68,17.0592532]
[1718501243014,5.61,144.71,144.68,17.0592532]
[1718501243223,15.3358,144.76,144.69,0.17]
[1718501243405,5.61,144.72,144.69,0.68]
[1718501243598,5.61,144.72,144.69,0.34]
[1718501243905,5.61,144.72,144.69,0.17]
[1718501245003,28.90893828,144.79,144.69,0.34]
[1718501245320,5.61,144.75,144.7,0.34]
[1718501246926,5.61,144.74,144.7,0.34]
[1718501247896,5.61,144.74,144.69,0.34]
[1718501248106,5.61,144.73,144.69,0.34]
[1718501248602,5.61,144.73,144.69,0.17]
[1718501248813,5.61,144.73,144.68,23.0092532]
[1718501249016,5.61,144.73,144.68,17.3992532]
[1718501249533,5.61,144.73,144.69,1.38194624]
[1718501251022,15.3389,144.73,144.68,0.8597532]
[1718501251329,5.61,144.69,144.68,0.8597532]
[1718501251493,11.22,144.69,144.68,0.8597532]
[1718501252415,22.44,144.76,144.68,0.8597532]
[1718501252416,16.3224,144.78,144.68,0.8597532]
[1718501252635,5.61,144.74,144.68,13.0043532]
[1718501252831,45.5578,144.77,144.68,7.3943532]
[1718501253030,43.002,144.77,144.68,7.3943532]
[1718501253238,2.5559,144.76,144.68,7.3943532]
[1718501253436,7.6678,144.76,144.69,0.34]
[1718501253638,2.5559,144.76,144.7,0.17]
[1718501254543,7.6678,144.76,144.7,0.17]
[1718501254745,7.6684,144.75,144.7,0.17]
[1718501255042,25.565,144.73,144.68,0.8597532]
[1718501255448,7.6696,144.73,144.68,0.8597532]
[1718501257047,25.5657,144.73,144.68,0.8597532]
[1718501257345,0.17,144.76,144.68,0.8597532]
[1718501257346,23.0101,144.72,144.68,0.8597532]
[1718501257639,7.6706,144.71,144.68,0.8597532]
[1718501257840,25.5687,144.71,144.68,0.8597532]
[1718501258046,23.0135,144.7,144.68,0.8597532]
[1718501258221,25.5706,144.7,144.68,0.8597532]
[1718501259053,7.6711,144.7,144.68,0.8597532]
[1718501259217,25.5716,144.69,144.68,0.8597532]
[1718501259840,26.0816,144.69,144.68,0.8597532]
[1718501260048,46.0816,144.69,144.68,0.8597532]
[1718501260556,46.2516,144.69,144.68,0.8597532]
[1718501261520,45.5716,144.69,144.68,0.8597532]
[1718501265245,7.6712,144.7,144.68,0.8597532]
[1718501265427,2.557,144.7,144.68,0.8597532]
[1718501265948,2.5571,144.69,144.68,0.8597532]
[1718501266320,2.5571,144.7,144.68,0.8597532]
[1718501266520,2.5569,144.71,144.68,0.8597532]
[1718501266749,23.0115,144.71,144.68,0.8597532]
[1718501267141,25.5684,144.71,144.68,0.8597532]
[1718501268249,2.5569,144.71,144.68,0.8597532]
[1718501268422,7.6705,144.71,144.68,0.8597532]
[1718501268622,15.341,144.71,144.68,0.8597532]
[1718501268824,2.557,144.7,144.68,0.8597532]
[1718501269077,2.5571,144.69,144.68,0.8597532]
[1718501269933,25.5707,144.7,144.68,0.8597532]
[1718501270328,2.5571,144.69,144.68,0.8597532]
[1718501270672,23.0136,144.7,144.68,0.8597532]
[1718501270673,25.5707,144.7,144.68,0.8597532]
[1718501271031,17.8996,144.7,144.68,0.8597532]
[1718501271630,7.6714,144.7,144.68,0.8597532]
[1718501272044,2.5571,144.7,144.68,0.8597532]
[1718501272346,32.6467,144.76,144.68,0.8597532]
[1718501272540,2.5565,144.73,144.68,0.8597532]
[1718501272748,7.669,144.74,144.68,0.8597532]
[1718501273963,23.0069,144.74,144.68,0.8597532]
[1718501274259,2.5564,144.73,144.68,0.8597532]
[1718501275234,23.0069,144.74,144.68,0.8597532]
[1718501275555,7.6694,144.73,144.68,0.8597532]
[1718501275933,2.5566,144.72,144.68,0.8597532]
[1718501276135,25.5649,144.73,144.68,0.8597532]
[1718501276437,2.5566,144.72,144.68,0.8597532]
[1718501276647,25.5649,144.73,144.68,0.8597532]
[1718501277052,7.6692,144.74,144.68,0.8597532]
[1718501277259,2.5563,144.74,144.69,16.2238]
[1718501278172,25.5619,144.75,144.69,16.2238]
[1718501278656,2.5563,144.74,144.69,16.2238]
[1718501279853,7.6687,144.75,144.69,16.2238]
[1718501280361,2.5562,144.75,144.69,16.2238]
[1718501280730,7.6689,144.74,144.69,16.2238]
[1718501280934,23.0042,144.76,144.69,16.2238]
[1718501281167,2.5561,144.75,144.69,16.2238]
[1718501281346,25.5602,144.76,144.69,16.2238]
[1718501281531,2.5561,144.75,144.69,16.2238]
[1718501281978,7.6683,144.75,144.69,16.2238]
[1718501282274,2.5561,144.76,144.7,6.1527]
[1718501282456,10.2231,144.77,144.7,6.1527]
[1718501282772,7.6679,144.76,144.7,6.1527]
[1718501282974,2.5561,144.75,144.7,6.1527]
[1718501283152,25.5596,144.76,144.7,6.1527]
[1718501283474,7.668,144.76,144.7,6.1527]
[1718501284170,2.5561,144.76,144.7,6.1527]
[1718501284469,2.5557,144.77,144.7,6.1527]
[1718501284676,2.5557,144.77,144.71,0.17]
[1718501285245,7.6672,144.77,144.71,0.17]
[1718501287477,256.7,144.79,144.71,0.34]
[1718501287780,256.7,144.79,144.72,0.34]
[1718501288271,256.7,144.79,144.73,0.17]
[1718501288469,2.555,144.81,144.74,16.2238]
[1718501288666,2.5552,144.8,144.74,16.2238]
[1718501289456,25.5511,144.81,144.74,16.2238]
[1718501289675,2.5552,144.81,144.74,16.2238]
[1718501289889,2.5549,144.82,144.74,16.2238]
[1718501290072,2.5551,144.81,144.74,16.2238]
[1718501290680,7.6652,144.81,144.74,16.2238]
[1718501291254,2.555,144.81,144.75,6.497]
[1718501291451,15.3305,144.81,144.75,6.497]
[1718501291660,22.9961,144.81,144.75,6.497]
[1718501291956,25.5513,144.81,144.75,6.497]
[1718501292255,2.5552,144.81,144.75,6.497]
[1718501292589,7.665,144.82,144.75,6.497]
[1718501293276,12.7746,144.82,144.75,6.497]
[1718501293479,2.5551,144.81,144.75,6.497]
[1718501293782,7.665,144.82,144.75,6.497]
[1718501294156,15.3297,144.82,144.75,6.497]
[1718501294484,7.665,144.82,144.75,6.497]
[1718501295255,2.5547,144.83,144.75,6.497]
[1718501295456,25.5458,144.84,144.76,0.34]
[1718501295677,25.5458,144.84,144.76,0.17]
[1718501295860,7.6638,144.84,144.76,0.17]
[1718501296459,22.9909,144.84,144.76,0.17]
[1718501296680,256.7,144.88,144.78,0.17]
[1718501297014,256.7,144.88,144.8,0.17]
[1718501297170,256.7,144.88,144.8,0.68]
[1718501297595,259.2538,144.88,144.8,0.68]
[1718501297773,2.554,144.87,144.8,0.68]
[1718501298488,282.2387,144.88,144.8,0.68]
[1718501299094,272.0232,144.88,144.8,0.68]
[1718501299273,264.3615,144.88,144.8,0.68]
[1718501299590,256.7,144.88,144.8,0.68]
[1718501300088,256.7,144.88,144.81,15.4174]
[1718501300470,259.2538,144.88,144.81,15.4174]
[1718501300871,264.3615,144.88,144.81,15.4174]
[1718501301594,272.023,144.88,144.81,15.4174]
[1718501302901,5.61,144.85,144.81,15.4174]
[1718501304009,256.7,144.88,144.81,21.0274]
[1718501304192,5.61,144.87,144.82,5.61]
[1718501304899,256.7,144.88,144.81,15.4174]
[1718501314917,282.239,144.88,144.81,15.4174]
[1718501315208,256.7,144.88,144.81,15.4174]
[1718501316312,256.7,144.88,144.82,0.9843872]
[1718501320918,259.2538,144.88,144.81,15.4174]
[1718501321805,2.5538,144.88,144.81,15.4174]
[1718501322706,2.5546,144.84,144.81,15.4174]
[1718501322883,0.17,144.86,144.77,15.7702]
[1718501323088,2.5549,144.82,144.77,15.7702]
[1718501323308,25.5476,144.83,144.77,15.7702]
[1718501323607,7.6644,144.83,144.77,15.7702]
[1718501323817,2.5548,144.83,144.77,15.7702]
[1718501324713,42.3664,144.84,144.77,15.7702]
[1718501324889,5.61,144.79,144.77,15.7702]
[1718501328489,7.6658,144.8,144.73,15.7702]
[1718501328696,5.61,144.76,144.73,15.7702]
[1718501329426,25.5514,144.81,144.73,15.7702]
[1718501329427,5.61,144.75,144.73,15.7702]
[1718501330736,5.61,144.74,144.72,6.3166]
[1718501330916,2.5557,144.78,144.69,21.2928]
[1718501331495,42.405,144.79,144.69,21.2928]
[1718501331994,24.5165,144.79,144.69,21.2928]
[1718501332429,19.4055,144.79,144.69,21.2928]
[1718501333834,7.8374,144.77,144.69,21.2928]
[1718501334023,15.5047,144.77,144.69,21.2928]
[1718501334239,2.5559,144.76,144.69,21.2928]
[1718501334420,25.7279,144.77,144.69,21.2928]
[1718501334592,0.17,144.77,144.69,21.2928]
[1718501334797,26.0682,144.77,144.69,21.2928]
[1718501335224,8.1775,144.77,144.69,21.2928]
[1718501335393,0.51,144.77,144.69,21.2928]
[1718501335595,3.0657,144.77,144.69,21.2928]
[1718501338001,3.0658,144.77,144.69,21.2928]
[1718501338516,0.51,144.77,144.69,21.2928]
[1718501339014,3.0657,144.77,144.69,21.2928]
[1718501340431,0.51,144.77,144.69,21.2928]
[1718501342241,31.0179,144.79,144.69,21.2928]
[1718501342426,0.68,144.78,144.69,21.2928]
[1718501342620,22.38296694,144.82,144.7,0.17]
[1718501342935,24.93786694,144.82,144.7,0.68]
[1718501343241,22.8789,144.82,144.7,0.68]
[1718501343460,15.2142,144.82,144.7,0.68]
[1718501343939,17.7691,144.82,144.7,0.68]
[1718501344158,16.85,144.83,144.72,0.17]
[1718501344441,2.5546,144.84,144.74,0.17]
[1718501344730,2.5543,144.85,144.75,6.0039]
[1718501344937,297.5989,144.86,144.75,6.0039]
[1718501345109,295.0446,144.86,144.76,0.17]
[1718501345313,259.2542,144.86,144.76,0.34]